fUSD/lending_fUSD_20250521
["ID","MTS","AMOUNT","RATE_DAILY","PERIOD"]
[361809874,1747823464333,-420.0,0.0003315,5]
[361809875,1747823464343,-611.48,0.0003315,5]
[361809876,1747823464354,-420.0,0.0003315,5]
[361809877,1747823464364,-240.74129087,0.0003315,5]
[361809878,1747823464374,-420.0,0.0003315,5]
[361809879,1747823464382,-420.0,0.0003315,5]
[361809880,1747823464392,-420.0,0.0003315,5]
[361809881,1747823464402,-420.0,0.0003315,5]
[361809882,1747823464411,-499.33,0.0003315,5]
[361809883,1747823464419,-506.54,0.0003315,5]
[361809884,1747823464430,-420.0,0.0003315,5]
[361809885,1747823464441,-911.46,0.0003315,5]
[361809886,1747823464451,-1153.75,0.0003315,5]
[361809887,1747823464460,-420.0,0.0003315,5]
[361809888,1747823464469,-420.0,0.0003315,5]
[361809889,1747823464479,-420.0,0.0003315,5]
[361809890,1747823464488,-232.88,0.0003315,5]
[361809891,1747823464498,-420.0,0.0003315,5]
[361809892,1747823464507,-420.0,0.0003315,5]
[361809893,1747823464516,-730.43,0.0003315,5]
[361809894,1747823464526,-420.0,0.0003315,5]
[361809895,1747823464534,-420.0,0.0003315,5]
[361809896,1747823464543,-420.0,0.0003315,5]
[361809897,1747823464552,-420.0,0.0003315,5]
[361809898,1747823464560,-420.0,0.0003315,5]
[361809899,1747823464569,-1697.54,0.0003315,5]
[361809900,1747823464578,-579.77,0.0003315,5]
[361809901,1747823464586,-420.0,0.0003315,5]
[361809902,1747823464592,-420.0,0.0003315,5]
[361809903,1747823464601,-420.0,0.0003315,5]
[361809904,1747823464610,-420.0,0.0003315,5]
[361809905,1747823464620,-420.0,0.0003315,5]
[361809906,1747823464628,-570.61,0.0003315,5]
[361809907,1747823464638,-420.0,0.0003315,5]
[361809908,1747823464646,-420.0,0.0003315,5]
[361809909,1747823464655,-788.01,0.0003315,5]
[361809910,1747823464664,-420.0,0.0003315,5]
[361809911,1747823464672,-1490.72,0.0003315,5]
[361809912,1747823464681,-420.0,0.0003315,5]
[361809913,1747823464689,-300.94330366,0.0003315,5]
[361809914,1747823464698,-272.82636606,0.0003315,5]
[361809915,1747823464708,-917.84,0.0003315,5]
[361809916,1747823464717,-642.67,0.0003315,5]
[361809917,1747823464726,-420.0,0.0003315,5]
[361809918,1747823464736,-807.74,0.0003315,5]
[361809919,1747823464745,-901.58,0.0003315,5]
[361809920,1747823464754,-420.0,0.0003315,5]
[361809921,1747823464762,-3015.53,0.0003315,5]
[361809922,1747823464770,-379.99091988,0.0003315,5]
[361809923,1747823464789,-420.0,0.0003315,5]
[361809924,1747823464799,-460.17,0.0003315,5]
[361809925,1747823464808,-420.0,0.0003315,5]
[361809926,1747823464816,-420.0,0.0003315,5]
[361809927,1747823464826,-642.11,0.0003315,5]
[361809928,1747823464836,-420.0,0.0003315,5]
[361809929,1747823464845,-420.0,0.0003315,5]
[361809930,1747823464855,-1185.77,0.0003315,5]
[361809931,1747823464865,-973.19,0.0003315,5]
[361809932,1747823464875,-497.57,0.0003315,5]
[361809933,1747823464884,-1098.15,0.0003315,5]
[361809934,1747823464894,-420.0,0.0003315,5]
[361809935,1747823464904,-200.9426384,0.0003315,5]
[361809936,1747823464913,-420.0,0.0003315,5]
[361809937,1747823464923,-420.0,0.0003315,5]
[361809938,1747823464933,-420.0,0.0003315,5]
[361809939,1747823464944,-685.16,0.0003315,5]
[361809940,1747823464954,-420.0,0.0003315,5]
[361809941,1747823464963,-420.0,0.0003315,5]
[361809942,1747823464972,-420.0,0.0003315,5]
[361809943,1747823464980,-818.23,0.0003315,5]
[361809944,1747823464988,-1485.21,0.0003315,5]
[361809945,1747823464996,-448.34,0.0003315,5]
[361809946,1747823465005,-443.81,0.0003315,5]
[361809947,1747823465013,-1526.88,0.0003315,5]
[361809948,1747823465022,-420.0,0.0003315,5]
[361809949,1747823465030,-420.0,0.0003315,5]
[361809950,1747823465038,-470.16,0.0003315,5]
[361809951,1747823465046,-443.58,0.0003315,5]
[361809952,1747823465055,-669.64,0.0003315,5]
[361809953,1747823465064,-420.0,0.0003315,5]
[361809954,1747823465072,-420.0,0.0003315,5]
[361809955,1747823465081,-420.0,0.0003315,5]
[361809956,1747823465090,-937.45,0.0003315,5]
[361809957,1747823465098,-2266.87,0.0003315,5]
[361809958,1747823465108,-420.0,0.0003315,5]
[361809959,1747823465117,-442.68,0.0003315,5]
[361809960,1747823465126,-420.0,0.0003315,5]
[361809961,1747823465134,-420.0,0.0003315,5]
[361809962,1747823465143,-420.0,0.0003315,5]
[361809963,1747823465151,-420.0,0.0003315,5]
[361809964,1747823465159,-420.0,0.0003315,5]
[361809965,1747823465167,-655.53,0.0003315,5]
[361809966,1747823465177,-597.09,0.0003315,5]
[361809967,1747823465186,-420.0,0.0003315,5]
[361809968,1747823465196,-519.31608089,0.0003315,5]
[361809969,1747823465206,-420.0,0.0003315,5]
[361809970,1747823465215,-420.0,0.0003315,5]
[361809971,1747823465226,-636.42,0.0003315,5]
[361809972,1747823465236,-420.0,0.0003315,5]
[361809973,1747823465247,-420.0,0.0003315,5]
[361809974,1747823465256,-420.0,0.0003315,5]
[361809975,1747823465265,-420.0,0.0003315,5]
[361809976,1747823465275,-838.78,0.0003315,5]
[361809977,1747823465285,-493.93,0.0003315,5]
[361809978,1747823465295,-420.0,0.0003315,5]
[361809979,1747823465305,-420.0,0.0003315,5]
[361809980,1747823465315,-420.0,0.0003315,5]
[361809981,1747823465324,-560.23,0.0003315,5]
[361809982,1747823465334,-211.24737366,0.0003315,5]
[361809983,1747823465344,-420.0,0.0003315,5]
[361809984,1747823465355,-420.0,0.0003315,5]
[361809985,1747823465366,-1078.18,0.0003315,5]
[361809986,1747823465375,-420.0,0.0003315,5]
[361809987,1747823465385,-420.0,0.0003315,5]
[361809988,1747823465397,-420.0,0.0003315,5]
[361809989,1747823465407,-2322.3,0.0003315,5]
[361809990,1747823465417,-420.0,0.0003315,5]
[361809991,1747823465429,-420.0,0.0003315,5]
[361809992,1747823465439,-1065.69,0.0003315,5]
[361809993,1747823465448,-420.0,0.0003315,5]
[361809994,1747823465459,-1253.93,0.0003315,5]
[361809995,1747823465470,-1274.75,0.0003315,5]
[361809996,1747823465479,-463.91,0.0003315,5]
[361809997,1747823465488,-721.97,0.0003315,5]
[361809998,1747823465499,-420.0,0.0003315,5]
[361809999,1747823465509,-420.0,0.0003315,5]
[361810000,1747823465519,-420.0,0.0003315,5]
[361810001,1747823465528,-420.0,0.0003315,5]
[361810002,1747823465537,-417.94980781,0.0003315,5]
[361810003,1747823465546,-821.62,0.0003315,5]
[361810004,1747823465556,-420.0,0.0003315,5]
[361810005,1747823465565,-422.38,0.0003315,5]
[361810006,1747823465575,-1544.61,0.0003315,5]
[361810007,1747823465585,-550.85,0.0003315,5]
[361810008,1747823465594,-420.0,0.0003315,5]
[361810009,1747823465604,-420.0,0.0003315,5]
[361810010,1747823465614,-420.0,0.0003315,5]
[361810011,1747823465623,-420.0,0.0003315,5]
[361810012,1747823465633,-420.0,0.0003315,5]
[361810013,1747823465642,-499.46,0.0003315,5]
[361810014,1747823465652,-420.0,0.0003315,5]
[361810015,1747823465662,-678.04,0.0003315,5]
[361810016,1747823465671,-616.6,0.0003315,5]
[361810017,1747823465682,-1170.85,0.0003315,5]
[361810018,1747823465691,-546.75,0.0003315,5]
[361810019,1747823465702,-420.0,0.0003315,5]
[361810020,1747823465712,-420.0,0.0003315,5]
[361810021,1747823465722,-420.0,0.0003315,5]
[361810022,1747823465732,-1581.01,0.0003315,5]
[361810023,1747823465742,-420.0,0.0003315,5]
[361810024,1747823465752,-2020.82,0.0003315,5]
[361810025,1747823465762,-420.0,0.0003315,5]
[361810026,1747823465772,-420.0,0.0003315,5]
[361810027,1747823465781,-1587.36,0.0003315,5]
[361810028,1747823465791,-440.31,0.0003315,5]
[361810029,1747823465802,-528.73,0.0003315,5]
[361810030,1747823465812,-420.0,0.0003315,5]
[361810031,1747823465822,-530.24,0.0003315,5]
[361810032,1747823465831,-835.65,0.0003315,5]
[361810033,1747823465841,-420.0,0.0003315,5]
[361810034,1747823465851,-420.0,0.0003315,5]
[361810035,1747823465861,-632.49,0.0003315,5]
[361810036,1747823465871,-712.53,0.0003315,5]
[361810037,1747823465881,-420.0,0.0003315,5]
[361810038,1747823465891,-420.0,0.0003315,5]
[361810039,1747823465901,-420.0,0.0003315,5]
[361810040,1747823465910,-905.81,0.0003315,5]
[361810041,1747823465920,-420.0,0.0003315,5]
[361810042,1747823465930,-1500.35,0.0003315,5]
[361810043,1747823465939,-420.0,0.0003315,5]
[361810044,1747823465949,-913.23,0.0003315,5]
[361810045,1747823465959,-891.23,0.0003315,5]
[361810046,1747823465969,-420.0,0.0003315,5]
[361810047,1747823465978,-420.0,0.0003315,5]
[361810048,1747823465987,-420.0,0.0003315,5]
[361810049,1747823465997,-420.0,0.0003315,5]
[361810050,1747823466006,-420.0,0.0003315,5]
[361810051,1747823466016,-420.0,0.0003315,5]
[361810052,1747823466025,-420.0,0.0003315,5]
[361810053,1747823466035,-420.0,0.0003315,5]
[361810054,1747823466045,-793.59,0.0003315,5]
[361810055,1747823466054,-420.0,0.0003315,5]
[361810056,1747823466064,-420.0,0.0003315,5]
[361810057,1747823466073,-532.78,0.0003315,5]
[361810058,1747823466082,-420.0,0.0003315,5]
[361810059,1747823466091,-505.04925287,0.0003315,5]
[361810060,1747823466101,-420.0,0.0003315,5]
[361810061,1747823466110,-420.0,0.0003315,5]
[361810062,1747823466119,-420.0,0.0003315,5]
[361810063,1747823466129,-716.67,0.0003315,5]
[361810064,1747823466139,-431.22,0.0003315,5]
[361810065,1747823466148,-3321.89,0.0003315,5]
[361810066,1747823466157,-655.87,0.0003315,5]
[361810067,1747823466167,-420.0,0.0003315,5]
[361810068,1747823466177,-420.0,0.0003315,5]
[361810069,1747823466187,-464.92,0.0003315,5]
[361810070,1747823466197,-420.0,0.0003315,5]
[361810071,1747823466206,-752.46,0.0003315,5]
[361810072,1747823466216,-420.0,0.0003315,5]
[361810073,1747823466226,-420.0,0.0003315,5]
[361810074,1747823466235,-1164.32,0.0003315,5]
[361810075,1747823466245,-420.0,0.0003315,5]
[361810076,1747823466254,-447.46,0.0003315,5]
[361810077,1747823466264,-420.0,0.0003315,5]
[361810078,1747823466274,-420.0,0.0003315,5]
[361810079,1747823466284,-1182.51,0.0003315,5]
[361810080,1747823466293,-970.46,0.0003315,5]
[361810081,1747823466302,-420.0,0.0003315,5]
[361810082,1747823466312,-158.937943,0.0003315,5]
[361810083,1747823466322,-2566.8,0.0003315,3]
[361810084,1747823466333,-420.0,0.0003315,5]
[361810085,1747823466344,-986.1,0.0003315,5]
[361810086,1747823466356,-3544.76,0.0003315,5]
[361810087,1747823466366,-528.46,0.0003315,5]
[361810088,1747823466376,-420.0,0.0003315,5]
[361810089,1747823466387,-498.41,0.0003315,5]
[361810090,1747823466397,-420.0,0.0003315,5]
[361810091,1747823466407,-420.0,0.0003315,5]
[361810092,1747823466417,-420.0,0.0003315,5]
[361810093,1747823466429,-1116.24,0.0003315,5]
[361810094,1747823466439,-607.2,0.0003315,5]
[361810095,1747823466449,-511.54,0.0003315,5]
[361810096,1747823466459,-420.0,0.0003315,5]
[361810097,1747823466468,-1446.26,0.0003315,5]
[361810098,1747823466478,-420.0,0.0003315,5]
[361810099,1747823466487,-420.0,0.0003315,5]
[361810100,1747823466497,-420.0,0.0003315,5]
[361810101,1747823466507,-635.53,0.0003315,5]
[361810102,1747823466519,-420.0,0.0003315,5]
[361810103,1747823466529,-420.0,0.0003315,5]
[361810104,1747823466539,-420.0,0.0003315,5]
[361810105,1747823466548,-420.0,0.0003315,5]
[361810106,1747823466559,-602.05,0.0003315,5]
[361810107,1747823466569,-420.0,0.0003315,5]
[361810108,1747823466578,-3171.93,0.0003315,5]
[361810109,1747823466589,-169.91470718,0.0003315,5]
[361810110,1747823466599,-420.0,0.0003315,5]
[361810111,1747823466609,-420.0,0.0003315,5]
[361810112,1747823466618,-672.06,0.0003315,5]
[361810113,1747823466628,-501.87,0.0003315,5]
[361810114,1747823466638,-1136.92,0.0003315,5]
[361810115,1747823466647,-420.0,0.0003315,5]
[361810116,1747823466657,-960.17,0.0003315,5]
[361810117,1747823466666,-420.0,0.0003315,5]
[361810118,1747823466676,-420.0,0.0003315,5]
[361810119,1747823466685,-1498.01,0.0003315,5]
[361810120,1747823466694,-420.0,0.0003315,5]
[361810121,1747823466704,-425.36973627,0.0003315,5]
[361810122,1747823466713,-420.0,0.0003315,5]
[361810123,1747823466723,-420.0,0.0003315,5]
[361810124,1747823466732,-489.93,0.0003315,5]
[361810125,1747823466742,-420.0,0.0003315,5]
[361810126,1747823466751,-420.0,0.0003315,5]
[361810127,1747823466761,-420.0,0.0003315,5]
[361810128,1747823466770,-1634.56,0.0003315,5]
[361810129,1747823466779,-1181.55,0.0003315,5]
[361810130,1747823466789,-420.0,0.0003315,5]
[361810131,1747823466799,-420.0,0.0003315,5]
[361810132,1747823466810,-420.0,0.0003315,5]
[361810133,1747823466820,-420.0,0.0003315,5]
[361810134,1747823466830,-420.0,0.0003315,5]
[361810135,1747823466840,-420.0,0.0003315,5]
[361810136,1747823466850,-420.0,0.0003315,5]
[361810137,1747823466860,-731.06,0.0003315,5]
[361810138,1747823466869,-665.75,0.0003315,5]
[361810139,1747823466878,-420.0,0.0003315,5]
[361810140,1747823466888,-420.0,0.0003315,5]
[361810141,1747823466897,-420.0,0.0003315,5]
[361810142,1747823466907,-1010.87,0.0003315,5]
[361810143,1747823466917,-725.49,0.0003315,5]
[361810144,1747823466926,-1218.91,0.0003315,5]
[361810145,1747823466935,-1168.31,0.0003315,5]
[361810146,1747823466945,-1264.38,0.0003315,5]
[361810147,1747823466955,-420.0,0.0003315,5]
[361810148,1747823466964,-236.3302927,0.0003315,5]
[361810149,1747823466973,-420.0,0.0003315,2]
[361810150,1747823466983,-272.22891854,0.0003315,5]
[361810151,1747823466992,-584.07,0.0003315,5]
[361810152,1747823467002,-420.0,0.0003315,5]
[361810153,1747823467012,-3033.08,0.0003315,5]
[361810154,1747823467022,-420.0,0.0003315,5]
[361810155,1747823467031,-420.0,0.0003315,5]
[361810156,1747823467041,-420.0,0.0003315,5]
[361810157,1747823467051,-318.51277401,0.0003315,5]
[361810158,1747823467060,-740.34,0.0003315,5]
[361810159,1747823467070,-420.0,0.0003315,5]
[361810160,1747823467079,-420.0,0.0003315,5]
[361810161,1747823467089,-420.0,0.0003315,5]
[361810162,1747823467099,-1236.73,0.0003315,5]
[361810163,1747823467108,-420.0,0.0003315,5]
[361810164,1747823467118,-420.0,0.0003315,5]
[361810165,1747823467127,-420.0,0.0003315,5]
[361810166,1747823467136,-718.57,0.0003315,5]
[361810167,1747823467146,-420.0,0.0003315,2]
[361810168,1747823467155,-420.0,0.0003315,5]
[361810169,1747823467165,-2646.97,0.0003315,5]
[361810170,1747823467174,-420.0,0.0003315,5]
[361810171,1747823467183,-420.0,0.0003315,5]
[361810172,1747823467193,-420.0,0.0003315,5]
[361810173,1747823467208,-420.0,0.0003315,5]
[361810174,1747823467218,-3655.51,0.0003315,5]
[361810175,1747823467227,-420.0,0.0003315,5]
[361810176,1747823467236,-420.0,0.0003315,5]
[361810177,1747823467247,-1194.67,0.0003315,5]
[361810178,1747823467256,-637.39,0.0003315,5]
[361810179,1747823467266,-2368.39,0.0003315,5]
[361810180,1747823467276,-932.97,0.0003315,5]
[361810181,1747823467285,-788.04,0.0003315,5]
[361810182,1747823467295,-475.79,0.0003315,5]
[361810183,1747823467305,-469.81,0.0003315,5]
[361810184,1747823467314,-420.0,0.0003315,5]
[361810185,1747823467323,-1192.06,0.0003315,5]
[361810186,1747823467336,-1158.88,0.0003315,5]
[361810187,1747823467346,-2693.72,0.0003315,5]
[361810188,1747823467357,-2741.78,0.0003315,5]
[361810189,1747823467367,-1351.52,0.0003315,5]
[361810190,1747823467376,-420.0,0.0003315,5]
[361810191,1747823467386,-1167.31,0.0003315,5]
[361810192,1747823467397,-420.0,0.0003315,5]
[361810193,1747823467406,-420.0,0.0003315,5]
[361810194,1747823467416,-506.87,0.0003315,5]
[361810195,1747823467426,-420.0,0.0003315,5]
[361810196,1747823467438,-1450.92,0.0003315,5]
[361810197,1747823467448,-420.0,0.0003315,5]
[361810198,1747823467457,-664.46,0.0003315,5]
[361810199,1747823467467,-420.0,0.0003315,5]
[361810200,1747823467476,-2096.4,0.0003315,5]
[361810201,1747823467486,-1675.88,0.0003315,5]
[361810202,1747823467496,-783.68,0.0003315,5]
[361810203,1747823467505,-421.11,0.0003315,5]
[361810204,1747823467513,-420.0,0.0003315,5]
[361810205,1747823467523,-1330.16,0.0003315,5]
[361810206,1747823467533,-655.43,0.0003315,5]
[361810207,1747823467543,-226.6191164,0.0003315,5]
[361810208,1747823467553,-470.23,0.0003315,5]
[361810209,1747823467563,-628.75,0.0003315,5]
[361810210,1747823467572,-789.43,0.0003315,5]
[361810211,1747823467582,-420.0,0.0003315,5]
[361810212,1747823467591,-2066.32,0.0003315,5]
[361810213,1747823467602,-543.38,0.0003315,5]
[361810214,1747823467611,-1884.88,0.0003315,5]
[361810215,1747823467621,-420.0,0.0003315,5]
[361810216,1747823467630,-443.39,0.0003315,5]
[361810217,1747823467647,-420.0,0.0003315,5]
[361810218,1747823467667,-420.0,0.0003315,5]
[361810219,1747823467688,-814.52,0.0003315,5]
[361810220,1747823467701,-420.0,0.0003315,5]
[361810221,1747823467712,-468.75,0.0003315,5]
[361810222,1747823467722,-420.0,0.0003315,5]
[361810223,1747823467732,-2280.59,0.0003315,5]
[361810224,1747823467742,-420.0,0.0003315,5]
[361810225,1747823467752,-420.0,0.0003315,5]
[361810226,1747823467762,-420.0,0.0003315,5]
[361810227,1747823467772,-420.0,0.0003315,5]
[361810228,1747823467971,-420.0,0.0003315,5]
[361810229,1747823467982,-1660.08,0.0003315,5]
[361810230,1747823467992,-562.73,0.0003315,5]
[361810231,1747823468002,-891.37,0.0003315,5]
[361810232,1747823468012,-1229.28,0.0003315,5]
[361810233,1747823468022,-420.0,0.0003315,5]
[361810234,1747823468032,-2531.44,0.0003315,5]
[361810235,1747823468042,-420.0,0.0003315,5]
[361810236,1747823468053,-420.0,0.0003315,5]
[361810237,1747823468063,-420.0,0.0003315,5]
[361810238,1747823468072,-420.0,0.0003315,5]
[361810239,1747823468082,-1520.14,0.0003315,5]
[361810240,1747823468092,-420.0,0.0003315,5]
[361810241,1747823468102,-639.64,0.0003315,5]
[361810242,1747823468112,-420.0,0.0003315,5]
[361810243,1747823468121,-420.0,0.0003315,5]
[361810244,1747823468131,-2002.78,0.0003315,5]
[361810245,1747823468140,-420.0,0.0003315,5]
[361810246,1747823468150,-420.0,0.0003315,5]
[361810247,1747823468160,-504.03,0.0003315,5]
[361810248,1747823468170,-420.0,0.0003315,5]
[361810249,1747823468179,-420.0,0.0003315,5]
[361810250,1747823468189,-756.35,0.0003315,5]
[361810251,1747823468199,-1155.6,0.0003315,5]
[361810252,1747823468209,-2487.3,0.0003315,5]
[361810253,1747823468219,-420.0,0.0003315,5]
[361810254,1747823468228,-420.0,0.0003315,5]
[361810255,1747823468239,-420.0,0.0003315,5]
[361810256,1747823468249,-829.63,0.0003315,5]
[361810257,1747823468259,-420.0,0.0003315,5]
[361810258,1747823468268,-440.4,0.0003315,5]
[361810259,1747823468280,-3548.27,0.0003315,5]
[361810260,1747823468289,-420.0,0.0003315,5]
[361810261,1747823468299,-420.0,0.0003315,5]
[361810262,1747823468309,-1069.06,0.0003315,5]
[361810263,1747823468319,-512.22,0.0003315,5]
[361810264,1747823468329,-1131.24,0.0003315,5]
[361810265,1747823468339,-420.0,0.0003315,5]
[361810266,1747823468349,-531.37,0.0003315,5]
[361810267,1747823468362,-420.0,0.0003315,5]
[361810268,1747823468371,-438.38,0.0003315,5]
[361810269,1747823468381,-420.0,0.0003315,5]
[361810270,1747823468392,-420.0,0.0003315,5]
[361810271,1747823468402,-1167.92,0.0003315,5]
[361810272,1747823468411,-836.66,0.0003315,5]
[361810273,1747823468421,-1758.59,0.0003315,5]
[361810274,1747823468431,-2244.73,0.0003315,5]
[361810275,1747823468440,-500.0,0.0003315,5]
[361810276,1747823468450,-706.99,0.0003315,5]
[361810277,1747823468459,-1671.68,0.0003315,5]
[361810278,1747823468469,-1303.3,0.0003315,5]
[361810279,1747823468478,-420.0,0.0003315,5]
[361810280,1747823468488,-630.7,0.0003315,5]
[361810281,1747823468498,-420.0,0.0003315,5]
[361810282,1747823468507,-420.0,0.0003315,5]
[361810283,1747823468516,-1546.03,0.0003315,5]
[361810284,1747823468528,-1449.1,0.0003315,5]
[361810285,1747823468538,-1084.11,0.0003315,5]
[361810286,1747823468548,-796.16,0.0003315,5]
[361810287,1747823468557,-829.47,0.0003315,5]
[361810288,1747823468567,-420.0,0.0003315,5]
[361810289,1747823468577,-420.0,0.0003315,5]
[361810290,1747823468587,-560.22,0.0003315,5]
[361810291,1747823468598,-2061.87,0.0003315,5]
[361810292,1747823468607,-677.92,0.0003315,5]
[361810293,1747823468617,-1832.34,0.0003315,5]
[361810294,1747823468627,-1759.24,0.0003315,5]
[361810295,1747823468637,-420.0,0.0003315,5]
[361810296,1747823468647,-420.0,0.0003315,5]
[361810297,1747823468658,-2008.9,0.0003315,5]
[361810298,1747823468668,-420.0,0.0003315,5]
[361810299,1747823468678,-420.0,0.0003315,5]
[361810300,1747823468688,-603.25,0.0003315,5]
[361810301,1747823468698,-420.0,0.0003315,5]
[361810302,1747823468709,-420.0,0.0003315,5]
[361810303,1747823468720,-420.0,0.0003315,5]
[361810304,1747823468729,-3335.62,0.0003315,5]
[361810305,1747823468740,-794.93,0.0003315,5]
[361810306,1747823468749,-420.0,0.0003315,5]
[361810307,1747823468760,-462.11,0.0003315,5]
[361810308,1747823468770,-1384.78,0.0003315,5]
[361810309,1747823468781,-3088.45,0.0003315,5]
[361810310,1747823468792,-3415.98,0.0003315,5]
[361810311,1747823468802,-420.0,0.0003315,5]
[361810312,1747823468813,-420.0,0.0003315,5]
[361810313,1747823468822,-420.0,0.0003315,5]
[361810314,1747823468832,-420.0,0.0003315,5]
[361810315,1747823468842,-475.97,0.0003315,5]
[361810316,1747823468852,-420.0,0.0003315,5]
[361810317,1747823468862,-1441.04,0.0003315,5]
[361810318,1747823468872,-420.0,0.0003315,5]
[361810319,1747823468882,-1360.17,0.0003315,5]
[361810320,1747823468892,-799.95,0.0003315,5]
[361810321,1747823468902,-2905.57,0.0003315,5]
[361810322,1747823468913,-420.0,0.0003315,5]
[361810323,1747823468923,-1022.16,0.0003315,5]
[361810324,1747823468933,-420.0,0.0003315,5]
[361810325,1747823468943,-420.0,0.0003315,5]
[361810326,1747823468953,-420.0,0.0003315,5]
[361810327,1747823468962,-420.0,0.0003315,5]
[361810328,1747823468972,-2154.53,0.0003315,5]
[361810329,1747823468981,-420.0,0.0003315,5]
[361810330,1747823468992,-1412.77,0.0003315,5]
[361810331,1747823469002,-420.0,0.0003315,5]
[361810332,1747823469012,-1804.92,0.0003315,5]
[361810333,1747823469023,-931.82,0.0003315,5]
[361810334,1747823469033,-420.0,0.0003315,5]
[361810335,1747823469043,-3820.81,0.0003315,5]
[361810336,1747823469053,-420.0,0.0003315,5]
[361810337,1747823469063,-420.0,0.0003315,5]
[361810338,1747823469072,-420.0,0.0003315,5]
[361810339,1747823469082,-446.52,0.0003315,5]
[361810340,1747823469092,-3379.22,0.0003315,5]
[361810341,1747823469102,-552.29,0.0003315,5]
[361810342,1747823469111,-420.0,0.0003315,5]
[361810343,1747823469121,-2204.62,0.0003315,5]
[361810344,1747823469131,-1365.61,0.0003315,5]
[361810345,1747823469140,-739.98,0.0003315,5]
[361810346,1747823469150,-1686.16,0.0003315,5]
[361810347,1747823469160,-420.0,0.0003315,5]
[361810348,1747823469170,-638.15,0.0003315,5]
[361810349,1747823469180,-420.0,0.0003315,5]
[361810350,1747823469189,-2851.0,0.0003315,5]
[361810351,1747823469199,-420.0,0.0003315,5]
[361810352,1747823469209,-420.0,0.0003315,5]
[361810353,1747823469219,-420.0,0.0003315,5]
[361810354,1747823469228,-669.03,0.0003315,5]
[361810355,1747823469239,-641.93,0.0003315,5]
[361810356,1747823469248,-1513.514558,0.0003315,5]
[361810357,1747823469259,-169.31811339,0.0003315,5]
[361810358,1747823469268,-1056.24,0.0003315,5]
[361810359,1747823469279,-605.2,0.0003315,5]
[361810360,1747823469290,-420.0,0.0003315,5]
[361810361,1747823469299,-420.0,0.0003315,5]
[361810362,1747823469309,-420.0,0.0003315,5]
[361810363,1747823469319,-420.0,0.0003315,5]
[361810364,1747823469329,-3414.72,0.0003315,5]
[361810365,1747823469339,-420.0,0.0003315,5]
[361810366,1747823469353,-538.77713264,0.0003315,5]
[361810367,1747823469363,-456.44,0.0003315,5]
[361810368,1747823469373,-2738.58,0.0003315,5]
[361810369,1747823469385,-626.72,0.0003315,5]
[361810370,1747823469395,-1961.22,0.0003315,5]
[361810371,1747823469405,-4019.16,0.0003315,5]
[361810372,1747823469415,-420.0,0.0003315,5]
[361810373,1747823469430,-420.0,0.0003315,5]